[Event "*** SCC Grand Prix: Titled Tuesday Blitz"]
[Site "Chess.com"]
[Date "2020.07.14"]
[Round "8"]
[White "PrinceMurad09"]
[Black "ChronicUnhappiness"]
[Result "1/2-1/2"]
[WhiteElo "2512"]
[BlackElo "2371"]
[TimeControl "180+1"]
[EndTime "11:36:36 PDT"]
[Termination "Game drawn by repetition"]

1. e4 {[%clk 0:03:00.9]} 1... d6 {[%clk 0:02:59.5]} 2. d4 {[%clk 0:03:00.7]}
2... Nf6 {[%clk 0:02:59.7]} 3. Nc3 {[%clk 0:03:01.1]} 3... g6 {[%clk 0:03:00.1]}
4. Nge2 {[%clk 0:03:01.1]} 4... Bg7 {[%clk 0:02:59.9]} 5. g3 {[%clk 0:03:01.5]}
5... O-O {[%clk 0:03:00]} 6. Bg2 {[%clk 0:03:02.1]} 6... e5 {[%clk 0:02:56.3]}
7. O-O {[%clk 0:03:02.1]} 7... Nc6 {[%clk 0:02:55]} 8. h3 {[%clk 0:03:02.2]}
8... exd4 {[%clk 0:02:54]} 9. Nxd4 {[%clk 0:03:02.4]} 9... Nxe4 {[%clk 0:02:34]}
10. Nxc6 {[%clk 0:02:37]} 10... Nxc3 {[%clk 0:02:33.2]} 11. Nxd8 {[%clk
0:02:36.8]} 11... Nxd1 {[%clk 0:02:32.6]} 12. Nxb7 {[%clk 0:02:37]} 12... Bxb7
{[%clk 0:02:06.4]} 13. Rxd1 {[%clk 0:02:24.3]} 13... Bxg2 {[%clk 0:02:04.9]} 14.
Kxg2 {[%clk 0:02:25.2]} 14... Rab8 {[%clk 0:02:04.5]} 15. c3 {[%clk 0:02:25.6]}
15... Rfe8 {[%clk 0:01:56.1]} 16. Kf1 {[%clk 0:02:18]} 16... f5 {[%clk
0:01:51.1]} 17. Rd2 {[%clk 0:02:14.7]} 17... Kf7 {[%clk 0:01:46.3]} 18. Rc2
{[%clk 0:02:14.2]} 18... a5 {[%clk 0:01:37.2]} 19. Be3 {[%clk 0:02:05.5]} 19...
a4 {[%clk 0:01:36.2]} 20. Rd1 {[%clk 0:02:05.3]} 20... Re5 {[%clk 0:01:23.5]}
21. c4 {[%clk 0:01:56.1]} 21... Re4 {[%clk 0:01:19.5]} 22. Bc1 {[%clk
0:01:52.5]} 22... Rd4 {[%clk 0:01:13.3]} 23. Rxd4 {[%clk 0:01:49.7]} 23... Bxd4
{[%clk 0:01:12.7]} 24. Ke2 {[%clk 0:01:50.3]} 24... Ke6 {[%clk 0:01:11.5]} 25.
Kd3 {[%clk 0:01:49.7]} 25... c5 {[%clk 0:01:11.7]} 26. Re2+ {[%clk 0:01:44.3]}
26... Kd7 {[%clk 0:01:11.4]} 27. Kc2 {[%clk 0:01:44.5]} 27... Rb7 {[%clk
0:00:36.9]} 28. g4 {[%clk 0:01:43]} 28... fxg4 {[%clk 0:00:25.3]} 29. hxg4
{[%clk 0:01:43.9]} 29... h5 {[%clk 0:00:25.5]} 30. gxh5 {[%clk 0:01:42.6]} 30...
gxh5 {[%clk 0:00:26.4]} 31. b3 {[%clk 0:01:40.2]} 31... axb3+ {[%clk 0:00:25.6]}
32. axb3 {[%clk 0:01:41.1]} 32... Kc6 {[%clk 0:00:24.7]} 33. Re6 {[%clk
0:01:38.9]} 33... Rf7 {[%clk 0:00:22.7]} 34. f4 {[%clk 0:01:38.1]} 34... Rf5
{[%clk 0:00:18.3]} 35. Rh6 {[%clk 0:01:37]} 35... Bf6 {[%clk 0:00:17.1]} 36. Kd3
{[%clk 0:01:36.4]} 36... d5 {[%clk 0:00:16.5]} 37. Be3 {[%clk 0:01:35.8]} 37...
h4 {[%clk 0:00:13.6]} 38. Bf2 {[%clk 0:01:34.2]} 38... dxc4+ {[%clk 0:00:09.8]}
39. bxc4 {[%clk 0:01:33.5]} 39... Rxf4 {[%clk 0:00:10.1]} 40. Bxh4 {[%clk
0:01:27.3]} 40... Rxh4 {[%clk 0:00:09.4]} 41. Rxf6+ {[%clk 0:01:27.4]} 41... Kd7
{[%clk 0:00:09.6]} 42. Kc3 {[%clk 0:01:26.1]} 42... Rh3+ {[%clk 0:00:09.3]} 43.
Kd2 {[%clk 0:01:24.6]} 43... Rh4 {[%clk 0:00:09.2]} 44. Kd3 {[%clk 0:01:24.5]}
44... Rh3+ {[%clk 0:00:09.3]} 45. Ke4 {[%clk 0:01:24.9]} 45... Rh5 {[%clk
0:00:09]} 46. Rf5 {[%clk 0:01:16.7]} 46... Rxf5 {[%clk 0:00:08.5]} 47. Kxf5
{[%clk 0:01:17.1]} 47... Kd6 {[%clk 0:00:08.4]} 48. Kf6 {[%clk 0:01:17.6]} 48...
Kc6 {[%clk 0:00:08.4]} 49. Ke6 {[%clk 0:01:17.8]} 49... Kb6 {[%clk 0:00:07.1]}
50. Kd6 {[%clk 0:01:18.1]} 50... Kb7 {[%clk 0:00:07.5]} 51. Kxc5 {[%clk
0:01:17.8]} 51... Kc7 {[%clk 0:00:07.8]} 52. Kb5 {[%clk 0:01:18.3]} 52... Kb7
{[%clk 0:00:08]} 53. Kb4 {[%clk 0:01:18.7]} 53... Kb6 {[%clk 0:00:07.9]} 54. Kc3
{[%clk 0:01:19.6]} 54... Kc5 {[%clk 0:00:07.9]} 55. Kd3 {[%clk 0:01:19.9]} 55...
Kc6 {[%clk 0:00:08.8]} 56. Kd4 {[%clk 0:01:20.8]} 56... Kd6 {[%clk 0:00:09.1]}
57. Kc3 {[%clk 0:01:16.5]} 57... Kc6 {[%clk 0:00:10]} 58. Kb4 {[%clk 0:01:17.4]}
58... Kb6 {[%clk 0:00:10.2]} 59. c5+ {[%clk 0:01:17.8]} 59... Kc6 {[%clk
0:00:11.1]} 60. Kc4 {[%clk 0:01:18.7]} 60... Kc7 {[%clk 0:00:11.3]} 61. Kb5
{[%clk 0:01:19.6]} 61... Kb7 {[%clk 0:00:11.6]} 62. Kc4 {[%clk 0:01:19.7]} 62...
Kc6 {[%clk 0:00:11.5]} 63. Kd4 {[%clk 0:01:20.6]} 63... Kc7 {[%clk 0:00:11.3]}
64. Kd5 {[%clk 0:01:21.5]} 64... Kd7 {[%clk 0:00:11.7]} 65. Ke5 {[%clk 0:01:22]}
65... Kc6 {[%clk 0:00:11.8]} 66. Kd4 {[%clk 0:01:22.9]} 66... Kc7 {[%clk
0:00:12.2]} 67. Kc4 {[%clk 0:01:23.8]} 67... Kc6 {[%clk 0:00:12.4]} 68. Kb4
{[%clk 0:01:24.3]} 68... Kb7 {[%clk 0:00:12.6]} 69. Kb5 {[%clk 0:01:25.2]} 69...
Kc7 {[%clk 0:00:13.2]} 70. c6 {[%clk 0:01:26.1]} 70... Kc8 {[%clk 0:00:11.6]}
71. Kb6 {[%clk 0:01:27]} 71... Kb8 {[%clk 0:00:11.7]} 72. Kc5 {[%clk 0:01:27.9]}
72... Kc7 {[%clk 0:00:11.9]} 73. Kd5 {[%clk 0:01:28.8]} 73... Kc8 {[%clk
0:00:11.6]} 74. Kd6 {[%clk 0:01:29.7]} 74... Kd8 {[%clk 0:00:11.6]} 75. Ke6
{[%clk 0:01:30.4]} 75... Kc7 {[%clk 0:00:11]} 76. Kd5 {[%clk 0:01:31.3]} 76...
Kc8 {[%clk 0:00:10.7]} 77. Kc5 {[%clk 0:01:32.2]} 77... Kc7 {[%clk 0:00:11]} 78.
Kb5 {[%clk 0:01:33.1]} 78... Kc8 {[%clk 0:00:09.7]} 79. Ka6 {[%clk 0:01:33.7]}
79... Kc7 {[%clk 0:00:09.5]} 80. Kb5 {[%clk 0:01:34.6]} 1/2-1/2

[Event "*** SCC Grand Prix: Titled Tuesday Blitz"]
[Site "Chess.com"]
[Date "2020.07.14"]
[Round "8"]
[White "Alexander_Moskalenko"]
[Black "annazero"]
[Result "1-0"]
[WhiteElo "2770"]
[BlackElo "2393"]
[TimeControl "180+1"]
[EndTime "11:36:41 PDT"]
[Termination "Alexander_Moskalenko won on time"]

1. f4 {[%clk 0:02:55.8]} 1... d5 {[%clk 0:02:58.3]} 2. Nf3 {[%clk 0:02:56.3]}
2... g6 {[%clk 0:02:58.3]} 3. g3 {[%clk 0:02:56.9]} 3... Bg7 {[%clk 0:02:58.5]}
4. Bg2 {[%clk 0:02:57.6]} 4... c5 {[%clk 0:02:58.5]} 5. c3 {[%clk 0:02:58.2]}
5... Nc6 {[%clk 0:02:58.4]} 6. d3 {[%clk 0:02:58.9]} 6... Nh6 {[%clk 0:02:58.1]}
7. O-O {[%clk 0:02:59.1]} 7... O-O {[%clk 0:02:29.2]} 8. e4 {[%clk 0:02:51.4]}
8... dxe4 {[%clk 0:02:04.1]} 9. dxe4 {[%clk 0:02:49.9]} 9... Qxd1 {[%clk
0:02:05]} 10. Rxd1 {[%clk 0:02:50]} 10... e5 {[%clk 0:02:05.9]} 11. Na3 {[%clk
0:02:41.3]} 11... Be6 {[%clk 0:01:59.7]} 12. h3 {[%clk 0:02:32.4]} 12... Rfd8
{[%clk 0:01:38.5]} 13. Be3 {[%clk 0:02:21.6]} 13... b6 {[%clk 0:01:38.6]} 14. f5
{[%clk 0:02:09.4]} 14... gxf5 {[%clk 0:00:58.5]} 15. Bxh6 {[%clk 0:02:07.7]}
15... Bxh6 {[%clk 0:00:59.4]} 16. exf5 {[%clk 0:02:08]} 16... Bd5 {[%clk
0:00:58.6]} 17. g4 {[%clk 0:01:57.6]} 17... Be3+ {[%clk 0:00:55.6]} 18. Kf1
{[%clk 0:01:57.9]} 18... Be4 {[%clk 0:00:40.6]} 19. Ne1 {[%clk 0:01:54.1]} 19...
Bxg2+ {[%clk 0:00:35.7]} 20. Nxg2 {[%clk 0:01:55]} 20... Bg5 {[%clk 0:00:32.4]}
21. Nc4 {[%clk 0:01:52]} 21... e4 {[%clk 0:00:26.7]} 22. Ke2 {[%clk 0:01:51]}
22... b5 {[%clk 0:00:25]} 23. Nd6 {[%clk 0:01:50.2]} 23... Ne5 {[%clk 0:00:24]}
24. Nxe4 {[%clk 0:01:48.7]} 24... Be7 {[%clk 0:00:24]} 25. Ne3 {[%clk 0:01:44]}
25... c4 {[%clk 0:00:12]} 26. Rd5 {[%clk 0:01:34.9]} 26... Rxd5 {[%clk
0:00:07.3]} 27. Nxd5 {[%clk 0:01:35.8]} 27... Bd8 {[%clk 0:00:05]} 28. a4 {[%clk
0:01:33.5]} 28... Rb8 {[%clk 0:00:04]} 29. axb5 {[%clk 0:01:26.7]} 29... Rxb5
{[%clk 0:00:04.9]} 30. Ndf6+ {[%clk 0:01:24.2]} 30... Bxf6 {[%clk 0:00:04.9]}
31. Nxf6+ {[%clk 0:01:25.1]} 31... Kg7 {[%clk 0:00:05.5]} 32. Nh5+ {[%clk
0:01:25.6]} 32... Kh6 {[%clk 0:00:05.8]} 33. Rxa7 {[%clk 0:01:19.5]} 33... Rxb2+
{[%clk 0:00:05.9]} 34. Ke3 {[%clk 0:01:20]} 34... Kg5 {[%clk 0:00:06.2]} 35. Re7
{[%clk 0:01:18.5]} 35... Rb5 {[%clk 0:00:02.9]} 36. Ke4 {[%clk 0:01:15.2]} 36...
Nd3 {[%clk 0:00:02.4]} 37. Rxf7 {[%clk 0:01:13]} 37... Nf2+ {[%clk 0:00:02.6]}
38. Kf3 {[%clk 0:01:11.4]} 38... Nxh3 {[%clk 0:00:03.5]} 39. Rxh7 {[%clk
0:01:09.4]} 39... Ng1+ {[%clk 0:00:02.2]} 40. Kg2 {[%clk 0:01:08.2]} 40... Ne2
{[%clk 0:00:01.7]} 41. Rg7+ {[%clk 0:01:08.5]} 41... Kh4 {[%clk 0:00:01.7]} 42.
Kf3 {[%clk 0:01:07.5]} 42... Ng1+ {[%clk 0:00:01.7]} 43. Ke4 {[%clk 0:01:06.7]}
43... Nh3 {[%clk 0:00:02.6]} 44. Nf6 {[%clk 0:01:02.3]} 44... Ng5+ {[%clk
0:00:03.5]} 45. Kd4 {[%clk 0:01:01.8]} 45... Rb8 {[%clk 0:00:02.2]} 46. Rg6
{[%clk 0:00:57.4]} 46... Rf8 {[%clk 0:00:02.2]} 47. Kxc4 {[%clk 0:00:57]} 47...
Rd8 {[%clk 0:00:01.8]} 48. Kb5 {[%clk 0:00:54.7]} 48... Rd6 {[%clk 0:00:01.7]}
49. c4 {[%clk 0:00:54.3]} 49... Rd1 {[%clk 0:00:01.4]} 50. c5 {[%clk 0:00:54.5]}
50... Nf3 {[%clk 0:00:02.2]} 51. Rh6+ {[%clk 0:00:35.8]} 51... Kg3 {[%clk
0:00:02]} 52. Rg6 {[%clk 0:00:36.3]} 1-0

[Event "*** SCC Grand Prix: Titled Tuesday Blitz"]
[Site "Chess.com"]
[Date "2020.07.14"]
[Round "8"]
[White "DaggiGretarsson"]
[Black "Jbd735"]
[Result "0-1"]
[WhiteElo "2575"]
[BlackElo "2466"]
[TimeControl "180+1"]
[EndTime "11:36:41 PDT"]
[Termination "Jbd735 won on time"]

1. d4 {[%clk 0:03:00]} 1... d5 {[%clk 0:02:34.8]} 2. c4 {[%clk 0:02:58.7]} 2...
c6 {[%clk 0:02:34.3]} 3. Nc3 {[%clk 0:02:58.3]} 3... e6 {[%clk 0:02:34.7]} 4. e3
{[%clk 0:02:56]} 4... Nf6 {[%clk 0:02:33.1]} 5. g4 {[%clk 0:02:55.2]} 5... Nbd7
{[%clk 0:02:24.4]} 6. g5 {[%clk 0:02:49.6]} 6... Ng8 {[%clk 0:02:22.1]} 7. Nf3
{[%clk 0:02:34.6]} 7... Bd6 {[%clk 0:02:10.8]} 8. h4 {[%clk 0:02:32]} 8... Ne7
{[%clk 0:02:08.6]} 9. Qc2 {[%clk 0:02:28.1]} 9... dxc4 {[%clk 0:02:05.4]} 10.
Bxc4 {[%clk 0:02:27.3]} 10... b5 {[%clk 0:02:05.4]} 11. Be2 {[%clk 0:02:05.6]}
11... Bb7 {[%clk 0:01:59.2]} 12. Bd2 {[%clk 0:02:05.4]} 12... a6 {[%clk
0:01:55.1]} 13. Ne4 {[%clk 0:02:04]} 13... Nb6 {[%clk 0:01:50.5]} 14. b4 {[%clk
0:01:52.2]} 14... Ned5 {[%clk 0:01:39.8]} 15. a3 {[%clk 0:01:50.4]} 15... O-O
{[%clk 0:01:24.3]} 16. Rg1 {[%clk 0:01:47.1]} 16... a5 {[%clk 0:01:14.8]} 17.
bxa5 {[%clk 0:01:45.6]} 17... Nc4 {[%clk 0:01:15.1]} 18. Bxc4 {[%clk 0:01:44.6]}
18... bxc4 {[%clk 0:01:16]} 19. Qxc4 {[%clk 0:01:31.8]} 19... Ba6 {[%clk
0:01:02.1]} 20. Qc2 {[%clk 0:01:30.7]} 20... Bc7 {[%clk 0:00:56.3]} 21. Ne5
{[%clk 0:01:23]} 21... Bxe5 {[%clk 0:00:54.9]} 22. dxe5 {[%clk 0:01:22.4]} 22...
Rb8 {[%clk 0:00:38.2]} 23. f4 {[%clk 0:01:15.3]} 23... Nxf4 {[%clk 0:00:28.6]}
24. exf4 {[%clk 0:01:06.5]} 24... Qd4 {[%clk 0:00:26.3]} 25. Rg3 {[%clk
0:00:18.6]} 25... Qxa1+ {[%clk 0:00:25]} 26. Bc1 {[%clk 0:00:16.5]} 26... Rb1
{[%clk 0:00:22.6]} 27. Rc3 {[%clk 0:00:12.2]} 27... Rd8 {[%clk 0:00:13.2]} 28.
Nf6+ {[%clk 0:00:11.2]} 28... gxf6 {[%clk 0:00:11.5]} 29. gxf6 {[%clk
0:00:11.4]} 29... Rxc1+ {[%clk 0:00:10.7]} 30. Qxc1 {[%clk 0:00:11.5]} 30...
Qxc1+ {[%clk 0:00:11.5]} 31. Rxc1 {[%clk 0:00:11.6]} 31... Bb5 {[%clk 0:00:09]}
32. Rd1 {[%clk 0:00:06.5]} 32... Rxd1+ {[%clk 0:00:05.3]} 33. Kxd1 {[%clk
0:00:06.7]} 33... Kf8 {[%clk 0:00:05.2]} 34. Kd2 {[%clk 0:00:06.3]} 34... Ke8
{[%clk 0:00:05.3]} 35. a4 {[%clk 0:00:05.5]} 35... Ba6 {[%clk 0:00:04.7]} 36.
Kc3 {[%clk 0:00:05.9]} 36... c5 {[%clk 0:00:04.8]} 37. h5 {[%clk 0:00:05.1]}
37... Kd7 {[%clk 0:00:04.6]} 38. h6 {[%clk 0:00:04.4]} 38... Kc6 {[%clk
0:00:04.8]} 39. f5 {[%clk 0:00:01.7]} 39... Kd5 {[%clk 0:00:04.7]} 40. fxe6
{[%clk 0:00:01.7]} 40... Kxe6 {[%clk 0:00:05]} 0-1

[Event "*** SCC Grand Prix: Titled Tuesday Blitz"]
[Site "Chess.com"]
[Date "2020.07.14"]
[Round "8"]
[White "Parkas"]
[Black "AlexSuv"]
[Result "0-1"]
[WhiteElo "2338"]
[BlackElo "2526"]
[TimeControl "180+1"]
[EndTime "11:36:44 PDT"]
[Termination "AlexSuv won by resignation"]

1. d4 {[%clk 0:03:00.9]} 1... Nf6 {[%clk 0:02:58.8]} 2. Nc3 {[%clk 0:03:00.9]}
2... d5 {[%clk 0:02:57]} 3. Bf4 {[%clk 0:03:00.4]} 3... g6 {[%clk 0:02:56.5]} 4.
e3 {[%clk 0:03:00.4]} 4... Bg7 {[%clk 0:02:56.6]} 5. h4 {[%clk 0:03:00.6]} 5...
h5 {[%clk 0:02:49.2]} 6. Nf3 {[%clk 0:03:00.3]} 6... O-O {[%clk 0:02:43.1]} 7.
Ne5 {[%clk 0:02:58.9]} 7... c5 {[%clk 0:02:42.2]} 8. dxc5 {[%clk 0:02:36.7]}
8... Qa5 {[%clk 0:02:28.6]} 9. a3 {[%clk 0:02:00.4]} 9... Qxc5 {[%clk
0:02:26.5]} 10. Qd4 {[%clk 0:02:00.6]} 10... Qa5 {[%clk 0:02:10.1]} 11. Be2
{[%clk 0:01:14.8]} 11... Nc6 {[%clk 0:02:08.1]} 12. Nxc6 {[%clk 0:01:14.6]}
12... bxc6 {[%clk 0:02:09]} 13. b4 {[%clk 0:01:15.1]} 13... Qd8 {[%clk
0:02:06.1]} 14. Be5 {[%clk 0:01:15.5]} 14... Ne8 {[%clk 0:01:59]} 15. Bxg7
{[%clk 0:01:15.3]} 15... Nxg7 {[%clk 0:01:59.9]} 16. e4 {[%clk 0:01:00.5]} 16...
Ne6 {[%clk 0:01:49.6]} 17. Qe5 {[%clk 0:00:51.8]} 17... d4 {[%clk 0:01:49.8]}
18. Na4 {[%clk 0:00:50.9]} 18... a5 {[%clk 0:01:50.3]} 19. O-O {[%clk
0:00:49.3]} 19... Ba6 {[%clk 0:01:41.2]} 20. Bxa6 {[%clk 0:00:45.4]} 20... Rxa6
{[%clk 0:01:42.1]} 21. Nc5 {[%clk 0:00:40.2]} 21... Nxc5 {[%clk 0:01:41.4]} 22.
bxc5 {[%clk 0:00:41.1]} 22... Qd7 {[%clk 0:01:30]} 23. Rfd1 {[%clk 0:00:37]}
23... Rd8 {[%clk 0:01:30.2]} 24. Rd3 {[%clk 0:00:31.1]} 24... f6 {[%clk
0:01:15.9]} 25. Qg3 {[%clk 0:00:28.9]} 25... Kg7 {[%clk 0:01:08.9]} 26. Rad1
{[%clk 0:00:25.8]} 26... e5 {[%clk 0:01:08.7]} 27. c3 {[%clk 0:00:26.4]} 27...
Ra7 {[%clk 0:01:01.5]} 28. cxd4 {[%clk 0:00:25]} 28... exd4 {[%clk 0:01:02.4]}
29. e5 {[%clk 0:00:21.7]} 29... Qe7 {[%clk 0:00:55.8]} 30. Rxd4 {[%clk
0:00:17.9]} 30... Rxd4 {[%clk 0:00:52.3]} 31. Rxd4 {[%clk 0:00:18.8]} 31... fxe5
{[%clk 0:00:41]} 32. Rd6 {[%clk 0:00:18.6]} 32... Qe8 {[%clk 0:00:32.2]} 33. Qf3
{[%clk 0:00:13.9]} 33... Re7 {[%clk 0:00:17.9]} 34. Rxc6 {[%clk 0:00:10.3]}
34... e4 {[%clk 0:00:17.3]} 35. Qf6+ {[%clk 0:00:10.5]} 35... Kh7 {[%clk
0:00:17.1]} 36. Kh2 {[%clk 0:00:09.2]} 36... Rg7 {[%clk 0:00:14.9]} 37. Re6
{[%clk 0:00:08.8]} 37... Qb8+ {[%clk 0:00:14.4]} 38. Qe5 {[%clk 0:00:08.8]}
38... Qf8 {[%clk 0:00:11.2]} 39. c6 {[%clk 0:00:08.8]} 39... Qxf2 {[%clk
0:00:09.3]} 40. Re7 {[%clk 0:00:07]} 40... Qxh4+ {[%clk 0:00:09.1]} 41. Kg1
{[%clk 0:00:06.4]} 41... Qe1+ {[%clk 0:00:09.3]} 42. Kh2 {[%clk 0:00:06.4]}
42... Qh4+ {[%clk 0:00:09.4]} 43. Kg1 {[%clk 0:00:07]} 43... Qxe7 {[%clk
0:00:10]} 44. Qd5 {[%clk 0:00:06.1]} 44... e3 {[%clk 0:00:10.1]} 0-1

[Event "*** SCC Grand Prix: Titled Tuesday Blitz"]
[Site "Chess.com"]
[Date "2020.07.14"]
[Round "8"]
[White "Xeniya2005"]
[Black "Azatic"]
[Result "0-1"]
[WhiteElo "2398"]
[BlackElo "2638"]
[TimeControl "180+1"]
[EndTime "11:36:45 PDT"]
[Termination "Azatic won on time"]

1. e4 {[%clk 0:03:00.9]} 1... c5 {[%clk 0:02:59.8]} 2. Be2 {[%clk 0:03:00.6]}
2... e6 {[%clk 0:02:59.9]} 3. f4 {[%clk 0:03:00.1]} 3... Nc6 {[%clk 0:02:59.8]}
4. Nf3 {[%clk 0:02:59.9]} 4... d6 {[%clk 0:02:55.9]} 5. O-O {[%clk 0:02:55.9]}
5... Nf6 {[%clk 0:02:52.6]} 6. d3 {[%clk 0:02:55.2]} 6... Be7 {[%clk 0:02:50.6]}
7. c3 {[%clk 0:02:53.9]} 7... O-O {[%clk 0:02:47.7]} 8. Kh1 {[%clk 0:02:53.7]}
8... a6 {[%clk 0:02:39.5]} 9. a4 {[%clk 0:02:51.9]} 9... Rb8 {[%clk 0:02:39.4]}
10. Be3 {[%clk 0:02:49.9]} 10... b5 {[%clk 0:02:39]} 11. axb5 {[%clk 0:02:49.3]}
11... axb5 {[%clk 0:02:39.9]} 12. Nbd2 {[%clk 0:02:48]} 12... Bb7 {[%clk
0:02:39.3]} 13. Qc2 {[%clk 0:02:40]} 13... d5 {[%clk 0:02:18.6]} 14. Bg1 {[%clk
0:02:26.2]} 14... dxe4 {[%clk 0:02:02.1]} 15. dxe4 {[%clk 0:02:24.2]} 15... c4
{[%clk 0:02:02.6]} 16. Rfd1 {[%clk 0:02:07]} 16... Qc7 {[%clk 0:01:58.6]} 17. g3
{[%clk 0:02:01]} 17... Rfd8 {[%clk 0:01:54.6]} 18. Nd4 {[%clk 0:01:34.6]} 18...
e5 {[%clk 0:01:15.2]} 19. Nxc6 {[%clk 0:01:21.5]} 19... Qxc6 {[%clk 0:01:16.1]}
20. Bf3 {[%clk 0:01:18.7]} 20... exf4 {[%clk 0:00:59.1]} 21. gxf4 {[%clk
0:01:16.9]} 21... h5 {[%clk 0:00:45.5]} 22. Bd4 {[%clk 0:00:53.4]} 22... Ng4
{[%clk 0:00:37.8]} 23. Re1 {[%clk 0:00:43.7]} 23... Bc5 {[%clk 0:00:35.3]} 24.
Bxc5 {[%clk 0:00:39.3]} 24... Qxc5 {[%clk 0:00:34.7]} 25. Re2 {[%clk 0:00:32.9]}
25... Rd3 {[%clk 0:00:28.4]} 26. Rae1 {[%clk 0:00:29]} 26... Rbd8 {[%clk
0:00:27.6]} 27. Bxg4 {[%clk 0:00:18.3]} 27... hxg4 {[%clk 0:00:27.1]} 28. Nf1
{[%clk 0:00:18.2]} 28... Qh5 {[%clk 0:00:22.5]} 29. Kg1 {[%clk 0:00:16]} 29...
Qh4 {[%clk 0:00:17]} 30. Rf2 {[%clk 0:00:09.8]} 30... g6 {[%clk 0:00:16.3]} 31.
Ng3 {[%clk 0:00:09.2]} 31... Rf3 {[%clk 0:00:15.6]} 32. Qe2 {[%clk 0:00:07.3]}
32... Rxf2 {[%clk 0:00:15]} 33. Qxf2 {[%clk 0:00:08.2]} 33... Rd3 {[%clk
0:00:13.4]} 34. Re3 {[%clk 0:00:04.6]} 34... Rd1+ {[%clk 0:00:12.7]} 35. Re1
{[%clk 0:00:04.4]} 35... Rd3 {[%clk 0:00:13]} 36. Re3 {[%clk 0:00:04.1]} 36...
Qd8 {[%clk 0:00:13.7]} 37. f5 {[%clk 0:00:03.2]} 37... Rd1+ {[%clk 0:00:11.3]}
38. Re1 {[%clk 0:00:03.2]} 38... Rd2 {[%clk 0:00:11.7]} 39. Qe3 {[%clk
0:00:01.8]} 39... Rxb2 {[%clk 0:00:07.9]} 40. fxg6 {[%clk 0:00:01.4]} 40... fxg6
{[%clk 0:00:08.8]} 0-1

[Event "*** SCC Grand Prix: Titled Tuesday Blitz"]
[Site "Chess.com"]
[Date "2020.07.14"]
[Round "8"]
[White "ZenBull"]
[Black "Iskusnyh"]
[Result "0-1"]
[WhiteElo "2101"]
[BlackElo "2477"]
[TimeControl "180+1"]
[EndTime "11:36:45 PDT"]
[Termination "Iskusnyh won by resignation"]

1. Nf3 {[%clk 0:03:00.9]} 1... d5 {[%clk 0:02:39.4]} 2. d4 {[%clk 0:03:00.6]}
2... Nf6 {[%clk 0:02:38.2]} 3. c4 {[%clk 0:03:00.6]} 3... c6 {[%clk 0:02:36.9]}
4. Nc3 {[%clk 0:02:59.5]} 4... a6 {[%clk 0:02:36.6]} 5. Qc2 {[%clk 0:02:56]}
5... g6 {[%clk 0:02:32.1]} 6. Bg5 {[%clk 0:02:51.9]} 6... Bf5 {[%clk 0:02:22.4]}
7. Qb3 {[%clk 0:02:50.3]} 7... b5 {[%clk 0:02:06.1]} 8. cxd5 {[%clk 0:02:30.8]}
8... Nxd5 {[%clk 0:02:03.5]} 9. Nxd5 {[%clk 0:02:24.9]} 9... Qxd5 {[%clk
0:01:54.8]} 10. Qxd5 {[%clk 0:02:22.9]} 10... cxd5 {[%clk 0:01:54.4]} 11. e3
{[%clk 0:00:40.8]} 11... e6 {[%clk 0:01:46.5]} 12. a3 {[%clk 0:00:33]} 12... Be7
{[%clk 0:01:41.7]} 13. Bxe7 {[%clk 0:00:29.9]} 13... Kxe7 {[%clk 0:01:41.4]} 14.
Kd2 {[%clk 0:00:30.3]} 14... Rc8 {[%clk 0:01:40.2]} 15. Bd3 {[%clk 0:00:26.7]}
15... Nd7 {[%clk 0:01:37.7]} 16. Bxf5 {[%clk 0:00:25]} 16... gxf5 {[%clk
0:01:37]} 17. Rhc1 {[%clk 0:00:20.4]} 17... Nf6 {[%clk 0:01:35.3]} 18. Ke2
{[%clk 0:00:19.7]} 18... Ne4 {[%clk 0:01:34.4]} 19. Nd2 {[%clk 0:00:19.7]} 19...
Nd6 {[%clk 0:01:33.4]} 20. b3 {[%clk 0:00:19.2]} 20... Kd7 {[%clk 0:01:23]} 21.
Kd1 {[%clk 0:00:19.3]} 21... a5 {[%clk 0:01:21]} 22. Rxc8 {[%clk 0:00:19.3]}
22... Rxc8 {[%clk 0:01:20.8]} 23. Rc1 {[%clk 0:00:20.2]} 23... Rg8 {[%clk
0:01:20.6]} 24. g3 {[%clk 0:00:18.8]} 24... b4 {[%clk 0:01:20.4]} 25. a4 {[%clk
0:00:18.1]} 25... h5 {[%clk 0:01:17.9]} 26. h4 {[%clk 0:00:17]} 26... Nb7 {[%clk
0:00:52]} 27. Ke2 {[%clk 0:00:17.2]} 27... f6 {[%clk 0:00:49.7]} 28. Kd3 {[%clk
0:00:17.2]} 28... e5 {[%clk 0:00:45.3]} 29. Rc2 {[%clk 0:00:17.7]} 29... Kd6
{[%clk 0:00:42.4]} 30. Rc1 {[%clk 0:00:17.2]} 30... Rg4 {[%clk 0:00:32.8]} 31.
dxe5+ {[%clk 0:00:15.9]} 31... fxe5 {[%clk 0:00:32.2]} 32. Ke2 {[%clk 0:00:16]}
32... Nc5 {[%clk 0:00:30.2]} 33. Rc2 {[%clk 0:00:14.5]} 33... Rg8 {[%clk
0:00:29.2]} 34. Rc1 {[%clk 0:00:14.9]} 34... Rc8 {[%clk 0:00:28.9]} 35. Rc2
{[%clk 0:00:15.4]} 35... Rc6 {[%clk 0:00:28.9]} 36. Rc1 {[%clk 0:00:15.8]} 36...
e4 {[%clk 0:00:25.5]} 37. Rc2 {[%clk 0:00:15.9]} 37... Rb6 {[%clk 0:00:25.8]}
38. Rc1 {[%clk 0:00:16]} 38... Nd3 {[%clk 0:00:26]} 39. Rc2 {[%clk 0:00:16.4]}
39... Rb8 {[%clk 0:00:26]} 40. Nf1 {[%clk 0:00:15.8]} 40... Rg8 {[%clk
0:00:19.8]} 41. Nd2 {[%clk 0:00:16]} 41... Rg7 {[%clk 0:00:18]} 42. Nf1 {[%clk
0:00:16.2]} 42... f4 {[%clk 0:00:18]} 43. exf4 {[%clk 0:00:15.1]} 43... d4
{[%clk 0:00:18.2]} 44. Nd2 {[%clk 0:00:14.8]} 44... Nxf4+ {[%clk 0:00:18.1]} 45.
gxf4 {[%clk 0:00:14.3]} 45... d3+ {[%clk 0:00:18.4]} 46. Kd1 {[%clk 0:00:14]}
46... Rg1+ {[%clk 0:00:18.3]} 0-1